[Event "Kragero Resort Chess A 2019"]
[Site "Kragero"]
[Date "2019.02.21"]
[Round "2.2"]
[White "Lie, Kjetil A."]
[Black "Tryggestad, Andreas Garberg"]
[Result "1/2-1/2"]
[ECO "A11"]
[WhiteElo "2538"]
[BlackElo "2351"]
[Annotator "ChessBase"]
[PlyCount "60"]
[EventDate "2019.02.20"]
[EventType "swiss"]
[EventCountry "NOR"]
[SourceTitle "playchess.com"]
[Source "ChessBase"]
[SourceQuality "1"]
[TimeControl "5400+30"]

1. b3 {[%emt 0:00:00]} Nf6 {[%emt 0:00:00]} 2. Bb2 {[%emt 0:00:00]} g6 {[%emt 0:00:00]} 3. c4 {[%emt 0:01:17]} Bg7 {[%emt 0:00:42]} 4. g3 {[%emt 0:01:13]} c6 {[%emt 0:02:12]} 5. Bg2 {[%emt 0:00:31]} d5 {[%emt 0:00:09]} 6. Nf3 {[%emt 0:00:37]} O-O {[%emt 0:00:11]} 7. O-O {[%emt 0:00:18]} a5 {[%emt 0:00:06]} 8. d3 {[%emt 0:09:02]} Na6 {[%emt 0:03:05]} 9. Nbd2 {[%emt 0:08:26]} b6 {[%emt 0:00:08]} 10. a3 {[%emt 0:05:10]} Bb7 {[%emt 0:00:10]} 11. Qc2 {[%emt 0:03:35]} e6 {[%emt 0:00:38]} 12. Rad1 {[%emt 0:02:46]} c5 {[%emt 0:00:36]} 13. e3 {[%emt 0:07:22]} Qe7 {[%emt 0:00:57]} 14. Rfe1 {[%emt 0:08:38]} Rfd8 {[%emt 0:01:04]} 15. cxd5 {[%emt 0:05:13]} exd5 {[%emt 0:07:55]} 16. e4 {[%emt 0:02:56]} Nc7 {[%emt 0:16:09]} 17. exd5 {[%emt 0:02:30]} Qf8 {[%emt 0:00:24]} 18. d6 {[%emt 0:04:04]} Ne6 {[%emt 0:11:50]} 19. Be5 {[%emt 0:10:48]} Ng4 {[%emt 0:16:54]} 20. Bxg7 {[%emt 0:02:30]} Qxg7 {[%emt 0:01:55]} 21. Qc4 {[%emt 0:06:28]} Nf6 {[%emt 0:00:57]} 22. Ne4 {[%emt 0:00:17]} Ne8 {[%emt 0:04:19]} 23. Bh3 {[%emt 0:06:03]} Nxd6 {[%emt 0:04:59]} 24. Nxd6 {[%emt 0:01:18]} Rxd6 {[%emt 0:08:06]} 25. Bxe6 {[%emt 0:06:56]} Rxe6 {[%emt 0:06:37]} 26. Rxe6 {[%emt 0:02:54]} Bxf3 {[%emt 0:00:02]} 27. Ree1 {[%emt 0:00:06]} Bxd1 {[%emt 0:00:14]} 28. Rxd1 {[%emt 0:00:03]} Rd8 {[%emt 0:02:13]} 29. Re1 {[%emt 0:00:07]} Qd4 {[%emt 0:01:47]} 30. Re3 {[%emt 0:02:10]} Kg7 {[%emt 0:07:56]} 1/2-1/2

[Event "Kragero Resort Chess A 2019"]
[Site "Kragero"]
[Date "2019.02.21"]
[Round "2.3"]
[White "Miedema, David"]
[Black "Malakhatko, Vadim"]
[Result "1-0"]
[ECO "C16"]
[WhiteElo "2356"]
[BlackElo "2525"]
[Annotator "ChessBase"]
[PlyCount "133"]
[EventDate "2019.02.20"]
[EventType "swiss"]
[EventCountry "NOR"]
[SourceTitle "playchess.com"]
[Source "ChessBase"]
[SourceQuality "1"]
[TimeControl "5400+30"]

1. e4 {[%emt 0:00:00]} e6 {[%emt 0:00:00]} 2. d4 {[%emt 0:00:00]} d5 {[%emt 0:00:00]} 3. Nc3 {[%emt 0:00:00]} Bb4 {[%emt 0:00:02]} 4. e5 {[%emt 0:00:04]} Qd7 {[%emt 0:00:06]} 5. Qg4 {[%emt 0:00:10]} f5 {[%emt 0:00:06]} 6. Qh5+ {[%emt 0:00:03]} Qf7 {[%emt 0:00:44]} 7. Qxf7+ {[%emt 0:09:04]} Kxf7 {[%emt 0:00:07]} 8. Bd2 {[%emt 0:00:09]} Bd7 {[%emt 0:12:50]} 9. h4 {[%emt 0:07:47]} Nh6 {[%emt 0:07:21]} 10. a3 {[%emt 0:10:10]} Be7 {[%emt 0:00:10]} 11. b4 {[%emt 0:03:05]} b6 {[%emt 0:04:36]} 12. Rb1 {[%emt 0:07:51]} Rc8 {[%emt 0:00:13]} 13. g3 {[%emt 0:02:07]} Nc6 {[%emt 0:13:06]} 14. Nge2 {[%emt 0:04:33]} a5 {[%emt 0:00:43]} 15. b5 {[%emt 0:02:08]} Nd8 {[%emt 0:00:07]} 16. a4 {[%emt 0:00:25]} c5 {[%emt 0:00:08]} 17. dxc5 {[%emt 0:02:49]} Bxc5 {[%emt 0:02:56]} 18. Nd1 {[%emt 0:00:52]} Kf8 {[%emt 0:10:25]} 19. f3 {[%emt 0:05:03]} Nhf7 {[%emt 0:07:36]} 20. Bf4 {[%emt 0:00:24]} h6 {[%emt 0:00:07]} 21. h5 {[%emt 0:01:20]} Nb7 {[%emt 0:00:19]} 22. c3 {[%emt 0:01:45]} Be7 {[%emt 0:08:58]} 23. g4 {[%emt 0:05:18]} fxg4 {[%emt 0:03:30]} 24. fxg4 {[%emt 0:00:03]} Nc5 {[%emt 0:00:07]} 25. Nb2 {[%emt 0:00:24]} Bg5 {[%emt 0:00:40]} 26. Bg2 {[%emt 0:02:07]} Rab8 {[%emt 0:05:28]} 27. O-O {[%emt 0:00:22]} Kg8 {[%emt 0:00:05]} 28. Rbe1 {[%emt 0:01:25]} Nb3 {[%emt 0:00:36]} 29. Nd3 {[%emt 0:02:38]} Nd2 {[%emt 0:05:21]} 30. Rf2 {[%emt 0:00:24]} Ne4 {[%emt 0:02:49]} 31. Bxe4 {[%emt 0:00:05]} dxe4 {[%emt 0:00:06]} 32. Nb2 {[%emt 0:00:34]} Rc5 {[%emt 0:08:05]} 33. Ng3 {[%emt 0:05:04]} Bxf4 {[%emt 0:00:51]} 34. Rxf4 {[%emt 0:00:09]} Ng5 {[%emt 0:00:07]} 35. Kg2 {[%emt 0:01:12]} Bc8 {[%emt 0:00:34]} 36. Re3 {[%emt 0:03:22]} Bb7 {[%emt 0:01:33]} 37. Ne2 {[%emt 0:00:50]} Rbc8 {[%emt 0:00:54]} 38. c4 {[%emt 0:00:48]} Rxe5 {[%emt 0:01:41]} 39. Kg3 {[%emt 0:00:47]} Rec5 {[%emt 0:00:10]} 40. Nc1 {[%emt 0:00:37]} Nf3 {[%emt 0:05:22]} 41. Nb3 {[%emt 0:00:17]} R5c7 {[%emt 0:00:06]} 42. c5 {[%emt 0:00:33]} Bd5 {[%emt 0:00:23]} 43. cxb6 {[%emt 0:02:17]} Rc3 {[%emt 0:00:33]} 44. Rfxf3 {[%emt 0:07:36]} exf3 {[%emt 0:00:19]} 45. Rxc3 {[%emt 0:00:01]} Rxc3 {[%emt 0:00:08]} 46. Nxa5 {[%emt 0:00:02]} f2+ {[%emt 0:01:29]} 47. Kxf2 {[%emt 0:00:03]} Rc2+ {[%emt 0:00:05]} 48. Ke3 {[%emt 0:00:02]} Rxb2 {[%emt 0:00:05]} 49. b7 {[%emt 0:01:57]} Bxb7 {[%emt 0:00:07]} 50. Nxb7 {[%emt 0:00:02]} Kf8 {[%emt 0:00:19]} 51. Kd3 {[%emt 0:01:42]} Ke7 {[%emt 0:00:15]} 52. Kc3 {[%emt 0:03:00]} Rb1 {[%emt 0:00:31]} 53. Kc4 {[%emt 0:02:14]} Rc1+ {[%emt 0:00:21]} 54. Kd4 {[%emt 0:00:17]} Rd1+ {[%emt 0:00:33]} 55. Kc4 {[%emt 0:00:49]} Rc1+ {[%emt 0:00:15]} 56. Kd4 {[%emt 0:00:19]} Rd1+ {[%emt 0:01:14]} 57. Kc5 {[%emt 0:01:39]} e5 {[%emt 0:00:18]} 58. Na5 {[%emt 0:02:10]} e4 {[%emt 0:00:06]} 59. Nc4 {[%emt 0:00:05]} Kd7 {[%emt 0:02:43]} 60. a5 {[%emt 0:00:14]} Kc7 {[%emt 0:00:37]} 61. a6 {[%emt 0:00:17]} Kb8 {[%emt 0:00:28]} 62. b6 {[%emt 0:00:39]} Ra1 {[%emt 0:00:30]} 63. a7+ {[%emt 0:00:35]} Ka8 {[%emt 0:00:18]} 64. Ne3 {[%emt 0:03:19]} Rc1+ {[%emt 0:00:23]} 65. Kd4 {[%emt 0:00:25]} Rb1 {[%emt 0:00:33]} 66. Nd5 {[%emt 0:00:07]} Kb7 {[%emt 0:00:15]} 67. Kxe4 {[%emt 0:01:31]} 1-0

[Event "Kragero Resort Chess A 2019"]
[Site "Kragero"]
[Date "2019.02.21"]
[Round "2.6"]
[White "Notkevich, Benjamin Arvola"]
[Black "Ingebretsen, Jens E"]
[Result "1-0"]
[ECO "D25"]
[WhiteElo "2498"]
[BlackElo "2297"]
[Annotator "ChessBase"]
[PlyCount "120"]
[EventDate "2019.02.20"]
[EventType "swiss"]
[EventCountry "NOR"]
[SourceTitle "playchess.com"]
[Source "ChessBase"]
[SourceQuality "1"]
[TimeControl "5400+30"]

1. d4 {[%emt 0:02:43]} d5 {[%emt 0:00:00]} 2. c4 {[%emt 0:00:17]} dxc4 {[%emt 0:00:00]} 3. Nf3 {[%emt 0:02:30]} Nf6 {[%emt 0:00:43]} 4. e3 {[%emt 0:00:07]} b5 {[%emt 0:00:04]} 5. a4 {[%emt 0:04:06]} b4 {[%emt 0:00:06]} 6. Bxc4 {[%emt 0:00:18]} e6 {[%emt 0:00:11]} 7. O-O {[%emt 0:00:34]} Be7 {[%emt 0:00:12]} 8. Nbd2 {[%emt 0:04:12]} Bb7 {[%emt 0:00:44]} 9. a5 {[%emt 0:01:29]} a6 {[%emt 0:02:41]} 10. Qe2 {[%emt 0:00:35]} O-O {[%emt 0:01:34]} 11. Rd1 {[%emt 0:01:09]} Nbd7 {[%emt 0:00:55]} 12. Nb3 {[%emt 0:05:21]} c5 {[%emt 0:05:46]} 13. dxc5 {[%emt 0:13:46]} Qc7 {[%emt 0:01:36]} 14. Bd2 {[%emt 0:00:07]} Nxc5 {[%emt 0:04:19]} 15. Bxb4 {[%emt 0:06:38]} Nxb3 {[%emt 0:01:03]} 16. Bxe7 {[%emt 0:00:06]} Nxa1 {[%emt 0:00:54]} 17. Bxf8 {[%emt 0:00:08]} Rxf8 {[%emt 0:00:43]} 18. Rxa1 {[%emt 0:00:27]} Ng4 {[%emt 0:01:48]} 19. e4 {[%emt 0:00:26]} Qf4 {[%emt 0:08:48]} 20. Bxa6 {[%emt 0:13:45]} Bxe4 {[%emt 0:10:23]} 21. Ra4 {[%emt 0:00:35]} f5 {[%emt 0:01:06]} 22. h3 {[%emt 0:05:54]} Nf6 {[%emt 0:31:13]} 23. Qd2 {[%emt 0:00:00]} Qb8 {[%emt 0:05:07]} 24. Ng5 {[%emt 0:04:20]} Rd8 {[%emt 0:14:37]} 25. Rd4 {[%emt 0:01:10]} Rxd4 {[%emt 0:00:20]} 26. Qxd4 {[%emt 0:00:05]} Bd5 {[%emt 0:05:54]} 27. Bc4 {[%emt 0:05:34]} Qb4 {[%emt 0:00:00]} 28. b3 {[%emt 0:14:19]} Qxa5 {[%emt 0:00:00]} 29. Qe5 {[%emt 0:00:53]} Nd7 {[%emt 0:01:30]} 30. Qd6 {[%emt 0:00:09]} Qa1+ {[%emt 0:01:10]} 31. Bf1 {[%emt 0:00:58]} Nf8 {[%emt 0:00:13]} 32. Qb8 {[%emt 0:03:53]} Qc3 {[%emt 0:01:45]} 33. b4 {[%emt 0:03:37]} h6 {[%emt 0:00:08]} 34. Nf3 {[%emt 0:00:12]} Qc1 {[%emt 0:00:48]} 35. Ne5 {[%emt 0:02:22]} Qa1 {[%emt 0:00:13]} 36. b5 {[%emt 0:00:35]} Qa8 {[%emt 0:00:09]} 37. Qxa8 {[%emt 0:00:47]} Bxa8 {[%emt 0:00:02]} 38. b6 {[%emt 0:00:06]} Bb7 {[%emt 0:00:30]} 39. g3 {[%emt 0:00:39]} f4 {[%emt 0:00:28]} 40. Bg2 {[%emt 0:00:26]} f3 {[%emt 0:00:06]} 41. Bxf3 {[%emt 0:00:48]} Bxf3 {[%emt 0:00:20]} 42. Nxf3 {[%emt 0:00:04]} Nd7 {[%emt 0:00:12]} 43. b7 {[%emt 0:00:05]} Nb8 {[%emt 0:00:28]} 44. Nd4 {[%emt 0:03:53]} Kf7 {[%emt 0:00:13]} 45. Kg2 {[%emt 0:00:04]} e5 {[%emt 0:01:23]} 46. Nf5 {[%emt 0:00:04]} Kf6 {[%emt 0:00:26]} 47. Ne3 {[%emt 0:00:04]} e4 {[%emt 0:00:30]} 48. g4 {[%emt 0:00:32]} g6 {[%emt 0:00:14]} 49. Kg3 {[%emt 0:00:16]} Ke5 {[%emt 0:00:11]} 50. Ng2 {[%emt 0:00:30]} Nc6 {[%emt 0:01:04]} 51. h4 {[%emt 0:00:51]} Nb8 {[%emt 0:01:16]} 52. Ne3 {[%emt 0:00:18]} Na6 {[%emt 0:00:27]} 53. h5 {[%emt 0:02:08]} gxh5 {[%emt 0:00:28]} 54. gxh5 {[%emt 0:00:05]} Nb8 {[%emt 0:00:12]} 55. Kg4 {[%emt 0:00:26]} Kd6 {[%emt 0:00:38]} 56. Nf5+ {[%emt 0:00:11]} Kc7 {[%emt 0:00:05]} 57. Nxh6 {[%emt 0:00:02]} Nd7 {[%emt 0:00:12]} 58. Kf5 {[%emt 0:00:43]} Kxb7 {[%emt 0:00:31]} 59. Ng4 {[%emt 0:00:35]} Kc6 {[%emt 0:00:23]} 60. Ne5+ {[%emt 0:00:12]} Kd5 {Kxe4+} 1-0

[Event "Kragero Resort Chess A 2019"]
[Site "Kragero"]
[Date "2019.02.21"]
[Round "2.8"]
[White "Hauge, Lars Oskar"]
[Black "Stefansson, Vignir Vatnar"]
[Result "0-1"]
[ECO "D01"]
[WhiteElo "2476"]
[BlackElo "2263"]
[Annotator "ChessBase"]
[PlyCount "144"]
[EventDate "2019.02.20"]
[EventType "swiss"]
[EventCountry "NOR"]
[SourceTitle "playchess.com"]
[Source "ChessBase"]
[SourceQuality "1"]
[TimeControl "5400+30"]

1. d4 {[%emt 0:00:07]} Nf6 {[%emt 0:00:40]} 2. Bg5 {[%emt 0:01:33]} d5 {[%emt 0:03:44]} 3. e3 {[%emt 0:03:40]} c5 {[%emt 0:04:49]} 4. Bxf6 {[%emt 0:09:07]} gxf6 {[%emt 0:00:21]} 5. Nc3 {[%emt 0:00:53]} Nc6 {[%emt 0:02:00]} 6. dxc5 {[%emt 0:06:14]} e6 {[%emt 0:01:42]} 7. Qh5 {[%emt 0:00:16]} Bxc5 {[%emt 0:04:07]} 8. O-O-O {[%emt 0:00:22]} f5 {[%emt 0:15:38]} 9. e4 {[%emt 0:08:32]} fxe4 {[%emt 0:02:17]} 10. Nxe4 {[%emt 0:01:32]} Bd4 {[%emt 0:08:00]} 11. Nf3 {[%emt 0:11:44]} Bg7 {[%emt 0:02:02]} 12. Nfg5 {[%emt 0:05:11]} Ne5 {[%emt 0:00:28]} 13. Bb5+ {[%emt 0:00:04]} Kf8 {[%emt 0:00:44]} 14. Nc3 {[%emt 0:12:57]} h6 {[%emt 0:04:52]} 15. Nf3 {[%emt 0:02:48]} Ng6 {[%emt 0:13:27]} 16. Qg4 {[%emt 0:01:37]} Qa5 {[%emt 0:02:03]} 17. Qa4 {[%emt 0:08:39]} Bxc3 {[%emt 0:01:18]} 18. bxc3 {[%emt 0:00:08]} Qxc3 {[%emt 0:02:14]} 19. Bd3 {[%emt 0:03:34]} Ne5 {[%emt 0:04:00]} 20. Nxe5 {[%emt 0:00:51]} Qxe5 {[%emt 0:00:08]} 21. Qb4+ {[%emt 0:00:20]} Kg7 {[%emt 0:02:17]} 22. Rhe1 {[%emt 0:00:13]} Qa1+ {[%emt 0:00:07]} 23. Kd2 {[%emt 0:00:21]} Qf6 {[%emt 0:00:05]} 24. f4 {[%emt 0:02:03]} Rg8 {[%emt 0:02:36]} 25. Re5 {[%emt 0:02:18]} Bd7 {[%emt 0:02:44]} 26. g3 {[%emt 0:01:35]} Bc6 {[%emt 0:01:26]} 27. Rde1 {[%emt 0:00:22]} d4 {[%emt 0:02:34]} 28. Qxd4 {[%emt 0:00:27]} Rgd8 {[%emt 0:00:08]} 29. Qe3 {[%emt 0:02:37]} Rd5 {[%emt 0:00:09]} 30. Qf2 {[%emt 0:01:33]} b6 {[%emt 0:04:27]} 31. Rxd5 {[%emt 0:00:53]} Bxd5 {[%emt 0:00:02]} 32. Re5 {[%emt 0:00:07]} Rd8 {[%emt 0:00:35]} 33. Ke2 {[%emt 0:01:08]} Bxa2 {[%emt 0:01:21]} 34. Qe3 {[%emt 0:02:15]} Bd5 {[%emt 0:02:12]} 35. f5 {[%emt 0:03:38]} exf5 {[%emt 0:04:18]} 36. Rxf5 {[%emt 0:00:51]} Qe6 {[%emt 0:00:46]} 37. Re5 {[%emt 0:00:07]} Qg4+ {[%emt 0:00:06]} 38. Ke1 {[%emt 0:00:11]} Rd6 {[%emt 0:03:48]} 39. c3 {[%emt 0:03:56]} Be6 {[%emt 0:02:52]} 40. Bc2 {[%emt 0:01:24]} Rd8 {[%emt 0:00:41]} 41. Qf2 {[%emt 0:01:08]} Rd5 {[%emt 0:01:05]} 42. Re2 {[%emt 0:00:18]} Qg5 {[%emt 0:00:13]} 43. Re3 {[%emt 0:02:57]} a5 {[%emt 0:01:11]} 44. h4 {[%emt 0:00:12]} Qg4 {[%emt 0:00:49]} 45. Kf1 {[%emt 0:00:03]} Bf5 {[%emt 0:00:43]} 46. Bb3 {[%emt 0:01:14]} Rd7 {[%emt 0:00:02]} 47. Rf3 {[%emt 0:00:33]} Be6 {[%emt 0:00:44]} 48. Bc2 {[%emt 0:00:18]} Qc4+ {[%emt 0:00:29]} 49. Kg1 {[%emt 0:00:08]} Qc5 {[%emt 0:00:04]} 50. Re3 {[%emt 0:01:04]} b5 {[%emt 0:00:37]} 51. g4 {[%emt 0:00:54]} Kf8 {[%emt 0:01:09]} 52. Qf4 {[%emt 0:00:12]} b4 {[%emt 0:00:30]} 53. Kh1 {[%emt 0:00:49]} Qd5+ {[%emt 0:00:21]} 54. Be4 {[%emt 0:00:12]} Qc5 {[%emt 0:00:34]} 55. cxb4 {[%emt 0:00:17]} axb4 {[%emt 0:00:37]} 56. Bf3 {[%emt 0:00:45]} Qc1+ {[%emt 0:00:18]} 57. Kh2 {[%emt 0:00:33]} Qd2+ {[%emt 0:00:39]} 58. Kh3 {[%emt 0:00:25]} Qd4 {[%emt 0:00:25]} 59. Qxh6+ {[%emt 0:00:08]} Ke7 {[%emt 0:00:09]} 60. Qg5+ {[%emt 0:00:08]} Kf8 {[%emt 0:00:23]} 61. h5 {[%emt 0:00:44]} b3 {[%emt 0:00:10]} 62. Qh6+ {[%emt 0:00:28]} Ke7 {[%emt 0:00:53]} 63. Qg5+ {[%emt 0:00:09]} Kf8 {[%emt 0:00:05]} 64. Re4 {[%emt 0:00:54]} Qc3 {[%emt 0:00:55]} 65. Qf4 {[%emt 0:01:08]} Rd3 {[%emt 0:00:51]} 66. Kh4 {[%emt 0:00:40]} Rxf3 {[%emt 0:00:25]} 67. Qd6+ {[%emt 0:00:25]} Kg7 {[%emt 0:00:29]} 68. h6+ {[%emt 0:00:34]} Kh7 {[%emt 0:00:41]} 69. Rxe6 {[%emt 0:00:06]} Rh3+ {[%emt 0:00:33]} 70. Kg5 {[%emt 0:00:02]} Qc1+ {[%emt 0:00:19]} 71. Kf6 {[%emt 0:00:03]} Rf3+ {[%emt 0:00:20]} 72. Ke7 {[%emt 0:00:41]} Qg5+ {[%emt 0:00:22]} 0-1

[Event "Kragero Resort Chess A 2019"]
[Site "Kragero"]
[Date "2019.02.21"]
[Round "2.13"]
[White "Lund, Gunnar"]
[Black "Mikalsen, Erlend"]
[Result "1/2-1/2"]
[ECO "A01"]
[WhiteElo "2211"]
[BlackElo "2406"]
[Annotator "NA"]
[PlyCount "91"]
[EventDate "2019.02.20"]
[EventType "swiss"]
[EventCountry "NOR"]
[SourceTitle "playchess.com"]
[Source "ChessBase"]
[SourceQuality "1"]
[TimeControl "5400+30"]

1. b3 {[%emt 0:00:17]} e5 {[%emt 0:00:00]} 2. Bb2 {[%emt 0:00:07]} Nc6 {[%emt 0:00:00]} 3. e3 {[%emt 0:01:11]} Nf6 {[%emt 0:00:00]} 4. Nf3 {[%emt 0:00:26]} Bd6 {[%emt 0:02:48]} 5. d4 {[%emt 0:06:05]} e4 {[%emt 0:06:12]} 6. Nfd2 {[%emt 0:04:29]} O-O {[%emt 0:00:51]} 7. c4 {[%emt 0:01:27]} Re8 {[%emt 0:01:10]} 8. Nc3 {[%emt 0:03:09]} Bb4 {[%emt 0:08:36]} 9. d5 {[%emt 0:12:05]} Ne5 {[%emt 0:01:55]} 10. Qc2 {[%emt 0:06:45]} d6 {[%emt 0:04:07]} 11. a3 {[%emt 0:02:09]} Bxc3 {[%emt 0:00:22]} 12. Qxc3 {[%emt 0:00:22]} Bf5 {[%emt 0:05:42]} 13. Be2 {[%emt 0:03:22]} Nfd7 {[%emt 0:05:55]} 14. O-O {[%emt 0:05:36]} Qg5 {[%emt 0:05:25]} 15. Kh1 {[%emt 0:04:24]} Qh6 {[%emt 0:01:30]} 16. f4 {[%emt 0:06:25]} exf3 {[%emt 0:03:25]} 17. gxf3 {[%emt 0:02:40]} Ng6 {[%emt 0:04:41]} 18. f4 {[%emt 0:06:27]} Nf6 {[%emt 0:00:57]} 19. Rae1 {[%emt 0:02:12]} Re7 {[%emt 0:03:48]} 20. Bf3 {[%emt 0:07:02]} Rae8 {[%emt 0:02:13]} 21. Rg1 {[%emt 0:02:35]} Ne4 {[%emt 0:02:25]} 22. Nxe4 {[%emt 0:01:07]} Bxe4 {[%emt 0:00:09]} 23. Bxe4 {[%emt 0:00:55]} Rxe4 {[%emt 0:00:04]} 24. Qd2 {[%emt 0:02:11]} Qh5 {[%emt 0:02:19]} 25. Rg3 {[%emt 0:04:17]} f6 {[%emt 0:02:01]} 26. Reg1 {[%emt 0:02:04]} Qf5 {[%emt 0:00:22]} 27. Bd4 {[%emt 0:00:41]} R4e7 {[%emt 0:02:58]} 28. Qg2 {[%emt 0:01:40]} Qd3 {[%emt 0:06:47]} 29. a4 {[%emt 0:00:57]} Kh8 {[%emt 0:01:44]} 30. Qb2 {[%emt 0:06:55]} Rf7 {[%emt 0:10:23]} 31. Qb1 {[%emt 0:04:56]} Qxb1 {[%emt 0:03:03]} 32. Rxb1 {[%emt 0:00:08]} Ne7 {[%emt 0:00:03]} 33. e4 {[%emt 0:00:48]} c5 {[%emt 0:03:18]} 34. Bc3 {[%emt 0:00:33]} Ng6 {[%emt 0:00:11]} 35. f5 {[%emt 0:00:17]} Nh4 {[%emt 0:01:44]} 36. Re1 {[%emt 0:00:44]} Rfe7 {[%emt 0:00:24]} 37. Reg1 {[%emt 0:00:06]} h5 {[%emt 0:02:48]} 38. Bd2 {[%emt 0:00:41]} Rxe4 {[%emt 0:01:46]} 39. Rxg7 {[%emt 0:00:39]} Nf3 {[%emt 0:00:42]} 40. Bc3 {[%emt 0:00:20]} Nxg1 {[%emt 0:03:38]} 41. Bxf6 {[%emt 0:00:28]} Ne2 {[%emt 0:01:11]} 42. Rg6+ {[%emt 0:00:05]} Kh7 {[%emt 0:00:04]} 43. Rg7+ {[%emt 0:00:04]} Kh6 {[%emt 0:00:23]} 44. Rg6+ {[%emt 0:00:04]} Kh7 {[%emt 0:00:03]} 45. Rg7+ {[%emt 0:00:04]} Kh6 {[%emt 0:00:03]} 46. Rg6+ {[%emt 0:00:05]} 1/2-1/2

[Event "Kragero Resort Chess A 2019"]
[Site "Kragero"]
[Date "2019.02.21"]
[Round "2.14"]
[White "Kjartansson, Gudmundur"]
[Black "Kazarian, Anna-Maja"]
[Result "1-0"]
[ECO "D02"]
[WhiteElo "2403"]
[BlackElo "2189"]
[Annotator "NA"]
[PlyCount "81"]
[EventDate "2019.02.20"]
[EventType "swiss"]
[EventCountry "NOR"]
[SourceTitle "playchess.com"]
[Source "ChessBase"]
[SourceQuality "1"]
[TimeControl "5400+30"]

1. Nf3 {[%emt 0:00:00]} Nf6 {[%emt 0:00:00]} 2. g3 {[%emt 0:00:27]} d5 {[%emt 0:00:17]} 3. Bg2 {[%emt 0:00:11]} c5 {[%emt 0:00:43]} 4. O-O {[%emt 0:00:38]} Nc6 {[%emt 0:00:34]} 5. d4 {[%emt 0:00:13]} cxd4 {[%emt 0:10:20]} 6. Nxd4 {[%emt 0:00:07]} e5 {[%emt 0:01:23]} 7. Nxc6 {[%emt 0:00:18]} bxc6 {[%emt 0:00:05]} 8. c4 {[%emt 0:00:07]} Be7 {[%emt 0:07:55]} 9. b3 {[%emt 0:20:18]} O-O {[%emt 0:03:01]} 10. Bb2 {[%emt 0:00:19]} e4 {[%emt 0:08:19]} 11. cxd5 {[%emt 0:02:47]} cxd5 {[%emt 0:00:21]} 12. Bd4 {[%emt 0:00:45]} Be6 {[%emt 0:07:22]} 13. Qd2 {[%emt 0:01:47]} Qd7 {[%emt 0:01:40]} 14. Nc3 {[%emt 0:02:17]} Rac8 {[%emt 0:04:36]} 15. Rfd1 {[%emt 0:10:43]} Qb7 {[%emt 0:07:27]} 16. Qb2 {[%emt 0:05:36]} Ne8 {[%emt 0:11:10]} 17. Na4 {[%emt 0:11:35]} Bf6 {[%emt 0:02:36]} 18. Qd2 {[%emt 0:01:16]} Bxd4 {[%emt 0:00:41]} 19. Qxd4 {[%emt 0:00:06]} Nd6 {[%emt 0:09:28]} 20. Rac1 {[%emt 0:01:50]} Nf5 {[%emt 0:02:41]} 21. Qe5 {[%emt 0:01:12]} Qe7 {[%emt 0:06:25]} 22. Nc3 {[%emt 0:10:55]} Qa3 {[%emt 0:05:55]} 23. Bh3 {[%emt 0:05:34]} d4 {[%emt 0:05:56]} 24. Bxf5 {[%emt 0:00:18]} Rxc3 {[%emt 0:00:26]} 25. Rxc3 {[%emt 0:08:22]} dxc3 {[%emt 0:00:04]} 26. Bxe6 {[%emt 0:00:11]} c2 {[%emt 0:01:00]} 27. Bxf7+ {[%emt 0:00:03]} Kh8 {[%emt 0:01:25]} 28. Rf1 {[%emt 0:00:06]} c1=Q {[%emt 0:00:12]} 29. Rxc1 {[%emt 0:00:02]} Qxc1+ {[%emt 0:00:06]} 30. Kg2 {[%emt 0:00:01]} Qc6 {[%emt 0:02:03]} 31. Qe7 {[%emt 0:01:24]} Ra8 {[%emt 0:00:40]} 32. h4 {[%emt 0:05:20]} Qf6 {[%emt 0:00:32]} 33. Qxe4 {[%emt 0:00:34]} Rf8 {[%emt 0:00:04]} 34. Bc4 {[%emt 0:00:10]} Qxf2+ {[%emt 0:00:04]} 35. Kh3 {[%emt 0:00:03]} Qf5+ {[%emt 0:01:03]} 36. Qxf5 {[%emt 0:00:08]} Rxf5 {[%emt 0:00:03]} 37. Kg4 {[%emt 0:00:08]} Rf2 {[%emt 0:01:05]} 38. b4 {[%emt 0:00:39]} g6 {[%emt 0:00:31]} 39. a4 {[%emt 0:00:03]} Kg7 {[%emt 0:00:35]} 40. a5 {[%emt 0:00:25]} h5+ {[%emt 0:00:39]} 41. Kh3 {[%emt 0:00:06]} 1-0

[Event "Kragero Resort Chess A 2019"]
[Site "Kragero"]
[Date "2019.02.21"]
[Round "2.15"]
[White "Vitenberg, Noam Aviv"]
[Black "Getz, Nicolai"]
[Result "0-1"]
[ECO "E92"]
[WhiteElo "2180"]
[BlackElo "2398"]
[Annotator "NA"]
[PlyCount "106"]
[EventDate "2019.02.20"]
[EventType "swiss"]
[EventCountry "NOR"]
[SourceTitle "playchess.com"]
[Source "ChessBase"]
[SourceQuality "1"]
[TimeControl "5400+30"]

1. Nf3 {[%emt 0:10:54]} Nf6 {[%emt 0:47:02]} 2. c4 {[%emt 0:00:30]} g6 {[%emt 0:00:30]} 3. Nc3 {[%emt 0:00:30]} Bg7 {[%emt 0:00:30]} 4. e4 {[%emt 0:00:30]} d6 {[%emt 0:00:30]} 5. d4 {[%emt 0:00:30]} O-O {[%emt 0:00:30]} 6. Be2 {[%emt 0:00:30]} e5 {[%emt 0:00:30]} 7. Be3 {[%emt 0:00:30]} Ng4 {[%emt 0:00:30]} 8. Bg5 {[%emt 0:00:30]} f6 {[%emt 0:00:30]} 9. Bh4 {[%emt 0:00:30]} Nc6 {[%emt 0:00:30]} 10. d5 {[%emt 0:00:30]} Ne7 {[%emt 0:00:30]} 11. Nd2 {[%emt 0:00:30]} f5 {[%emt 0:00:30]} 12. Bxg4 {[%emt 0:00:30]} fxg4 {[%emt 0:00:30]} 13. Bg5 {[%emt 0:00:30]} h6 {[%emt 0:00:30]} 14. Be3 {[%emt 0:00:30]} c5 {[%emt 0:00:30]} 15. Rb1 {[%emt 0:00:30]} g5 {[%emt 0:00:30]} 16. Nb3 {[%emt 0:00:30]} Ng6 {[%emt 0:00:30]} 17. g3 {[%emt 0:00:30]} a6 {[%emt 0:00:30]} 18. Nc1 {[%emt 0:00:30]} Rf3 {[%emt 0:00:30]} 19. N1e2 {[%emt 0:00:30]} b6 {[%emt 0:00:30]} 20. Qc2 {[%emt 0:00:30]} Ra7 {[%emt 0:00:30]} 21. b4 {[%emt 0:00:30]} Raf7 {[%emt 0:00:30]} 22. bxc5 {[%emt 0:00:30]} bxc5 {[%emt 0:00:30]} 23. Rb8 {[%emt 0:00:30]} Bf8 {[%emt 0:00:30]} 24. Qb2 {[%emt 0:00:30]} Rc7 {[%emt 0:00:30]} 25. Bd2 {[%emt 0:00:30]} Rff7 {[%emt 0:00:30]} 26. Na4 {[%emt 0:00:30]} Qf6 {[%emt 0:00:30]} 27. O-O {[%emt 0:00:30]} Qf3 {[%emt 0:00:30]} 28. Ba5 {[%emt 0:00:30]} Rb7 {[%emt 0:00:30]} 29. Rxb7 {[%emt 0:00:30]} Rxb7 {[%emt 0:00:30]} 30. Qc2 {[%emt 0:00:30]} Nh4 {[%emt 0:00:30]} 31. gxh4 {[%emt 0:00:30]} gxh4 {[%emt 0:00:30]} 32. Rc1 {[%emt 0:00:30]} Rf7 {[%emt 0:00:30]} 33. Ng3 {[%emt 0:00:30]} hxg3 {[%emt 0:00:30]} 34. hxg3 {[%emt 0:00:30]} h5 {[%emt 0:00:30]} 35. Re1 {[%emt 0:00:30]} Bh6 {[%emt 0:00:30]} 36. Nb6 {[%emt 0:00:30]} h4 {[%emt 0:00:30]} 37. Qe2 {[%emt 0:00:30]} hxg3 {[%emt 0:00:30]} 38. Qxf3 {[%emt 0:00:30]} Rxf3 {[%emt 0:00:30]} 39. fxg3 {[%emt 0:00:30]} Bb7 {[%emt 0:00:30]} 40. Rb1 {[%emt 0:00:30]} Rxg3+ {[%emt 0:00:30]} 41. Kh1 {[%emt 0:00:30]} Rh3+ {[%emt 0:00:30]} 42. Kg1 {[%emt 0:00:30]} Be3+ {[%emt 0:00:30]} 43. Kg2 {[%emt 0:00:30]} Bf4 {[%emt 0:00:30]} 44. Rh1 {[%emt 0:00:30]} Ra3 {[%emt 0:00:30]} 45. Be1 {[%emt 0:00:30]} Rxa2+ {[%emt 0:00:30]} 46. Kf1 {[%emt 0:00:30]} Rb2 {[%emt 0:00:30]} 47. Nd7 {[%emt 0:00:30]} Bc8 {[%emt 0:00:30]} 48. Nf6+ {[%emt 0:00:30]} Kf7 {[%emt 0:00:30]} 49. Rh8 {[%emt 0:00:30]} g3 {[%emt 0:00:30]} 50. Rxc8 {[%emt 0:00:30]} g2+ {[%emt 0:00:30]} 51. Kg1 {[%emt 0:00:30]} Be3+ {[%emt 0:00:30]} 52. Bf2 {[%emt 0:00:30]} Bxf2+ {[%emt 0:00:30]} 53. Kxg2 {[%emt 0:00:30]} Bh4+ {[%emt 0:00:30]} 0-1